fUSD/lending_fUSD_20260609
["ID","MTS","AMOUNT","RATE_DAILY","PERIOD"]
[424469182,1780937443000,-350.0,0.0001574,2]
[424469181,1780937443000,-7097.11682898,0.000157,2]
[424469186,1780937443000,-315218.7707586,0.00015843,2]
[424469523,1780937445000,-199.955123,0.00015,2]
[424469538,1780937445000,-9049.8844234,0.00015843,2]
[424469542,1780937445000,-151.0,0.00015843,2]
[424469534,1780937445000,-323255.84673669,0.00015843,2]
[424469536,1780937445000,-8645.2983344,0.00015843,2]
[424469525,1780937445000,-461.3992476,0.00015843,2]
[424469540,1780937445000,-151.0,0.00015843,2]
[424469546,1780937445000,-151.0,0.00015843,2]
[424469544,1780937445000,-151.0,0.00015843,2]
[424469548,1780937445000,-151.0,0.00015843,2]
[424469532,1780937445000,-3360.133,0.00015843,2]
[424469550,1780937445000,-151.0,0.00015843,2]
[424469611,1780937446000,-320.67825,0.00015843,2]
[424469625,1780937446000,-199.955123,0.00015843,2]
[424469619,1780937446000,-199.955123,0.00015843,2]
[424469618,1780937446000,-320.67825,0.00015843,2]
[424469620,1780937446000,-320.67825,0.00015843,2]
[424469623,1780937446000,-199.955123,0.00015843,2]
[424469626,1780937446000,-199.955123,0.00015843,2]
[424469616,1780937446000,-199.955123,0.00015843,2]
[424469622,1780937446000,-320.67825,0.00015843,2]
[424469614,1780937446000,-320.67825,0.00015843,2]
[424469629,1780937446000,-151.0,0.00015843,2]
[424469628,1780937446000,-199.955123,0.00015843,2]
[424469632,1780937446000,-1267.0,0.0001589,2]
[424469636,1780937446000,-10122.93535753,0.000159,2]
[424469633,1780937446000,-380.0,0.0001589,2]
[424469638,1780937446000,-7097.11682898,0.000159,2]
[424469635,1780937446000,-387.66768177,0.0001589,10]
[424469645,1780937446000,-574.45464748,0.00016,2]
[424469641,1780937446000,-2129.0,0.00015918,2]
[424469640,1780937446000,-700.0,0.00015906,2]
[424469647,1780937446000,-350.0,0.00016015,2]
[424469644,1780937446000,-300.0,0.00016,2]
[424469649,1780937446000,-324.34566573,0.00016022,2]
[424469642,1780937446000,-1446.0,0.00015995,2]
[424469655,1780937446000,-1147.45420169,0.00016061,2]
[424469612,1780937446000,-320.67825,0.00015843,2]
[424469652,1780937446000,-1672.7364795,0.00016049,2]
[424469630,1780937446000,-350.0,0.00015866,2]
[424469653,1780937446000,-1148.61238259,0.00016049,2]
[424469576,1780937446000,-151.0,0.00015843,2]
[424469609,1780937446000,-320.67825,0.00015843,2]
[424469650,1780937446000,-1147.45420169,0.00016023,2]
[424469559,1780937446000,-1086.554148,0.00015843,2]
[424469556,1780937446000,-1086.554148,0.00015843,2]
[424469554,1780937446000,-1086.554148,0.00015843,2]
[424469561,1780937446000,-1086.554148,0.00015843,2]
[424469552,1780937446000,-151.0,0.00015843,2]
[424469565,1780937446000,-1086.554148,0.00015843,2]
[424469563,1780937446000,-1086.554148,0.00015843,2]
[424469567,1780937446000,-1086.554148,0.00015843,2]
[424469569,1780937446000,-1086.554157,0.00015843,2]
[424469584,1780937446000,-151.0,0.00015843,2]
[424469580,1780937446000,-151.0,0.00015843,2]
[424469571,1780937446000,-151.0,0.00015843,2]
[424469615,1780937446000,-320.67825,0.00015843,2]
[424469588,1780937446000,-151.0,0.00015843,2]
[424469573,1780937446000,-151.0,0.00015843,2]
[424469586,1780937446000,-151.0,0.00015843,2]
[424469578,1780937446000,-151.0,0.00015843,2]
[424469589,1780937446000,-151.0,0.00015843,2]
[424469591,1780937446000,-249.639777,0.00015843,2]
[424469593,1780937446000,-212.019969,0.00015843,2]
[424469595,1780937446000,-212.019969,0.00015843,2]
[424469597,1780937446000,-212.019969,0.00015843,2]
[424469599,1780937446000,-212.019969,0.00015843,2]
[424469605,1780937446000,-212.019969,0.00015843,2]
[424469601,1780937446000,-212.019969,0.00015843,2]
[424469603,1780937446000,-212.019969,0.00015843,2]
[424469607,1780937446000,-212.019962,0.00015843,2]
[424469582,1780937446000,-151.0,0.00015843,2]
[424469664,1780937446000,-10122.93535753,0.000161,2]
[424469704,1780937446000,-167.76700519,0.00016401,2]
[424469663,1780937446000,-201.3234873,0.000161,7]
[424469706,1780937446000,-300.0,0.00016437,2]
[424469718,1780937446000,-151.0,0.00016438,2]
[424469720,1780937446000,-165.022566,0.00016438,2]
[424469722,1780937446000,-900.0,0.00016438,2]
[424469728,1780937446000,-509.383994,0.00016438,2]
[424469726,1780937446000,-509.383994,0.00016438,2]
[424469724,1780937446000,-509.383994,0.00016438,2]
[424469735,1780937446000,-509.383994,0.00016438,2]
[424469730,1780937446000,-509.383994,0.00016438,2]
[424469733,1780937446000,-509.383994,0.00016438,2]
[424469737,1780937446000,-509.383994,0.00016438,2]
[424469732,1780937446000,-509.383994,0.00016438,2]
[424469744,1780937446000,-509.383994,0.00016438,2]
[424469749,1780937446000,-509.383994,0.00016438,2]
[424469751,1780937446000,-509.383994,0.00016438,2]
[424469747,1780937446000,-509.383994,0.00016438,2]
[424469742,1780937446000,-509.383994,0.00016438,2]
[424469739,1780937446000,-509.383994,0.00016438,2]
[424469758,1780937446000,-509.384001,0.00016438,2]
[424469658,1780937446000,-1147.45420169,0.0001609,2]
[424469746,1780937446000,-509.383994,0.00016438,2]
[424469760,1780937446000,-230.61,0.00016438,2]
[424469756,1780937446000,-509.383994,0.00016438,2]
[424469753,1780937446000,-509.383994,0.00016438,2]
[424469754,1780937446000,-509.383994,0.00016438,2]
[424469762,1780937446000,-2665.771916,0.00016438,2]
[424469764,1780937446000,-2665.771916,0.00016438,2]
[424469703,1780937446000,-7097.11682898,0.000164,2]
[424469701,1780937446000,-10122.93535753,0.000164,2]
[424469741,1780937446000,-509.383994,0.00016438,2]
[424469707,1780937446000,-300.0,0.00016437,2]
[424469699,1780937446000,-1147.45420169,0.00016394,2]
[424469661,1780937446000,-1459.10576221,0.00016099,5]
[424469656,1780937446000,-350.0,0.00016061,4]
[424469666,1780937446000,-7097.11682898,0.000161,2]
[424469673,1780937446000,-9999.99,0.00016116,2]
[424469669,1780937446000,-1147.45420169,0.00016102,2]
[424469675,1780937446000,-300.0,0.00016199,2]
[424469668,1780937446000,-574.45464748,0.000161,2]
[424469671,1780937446000,-4378.76695744,0.0001611,15]
[424469676,1780937446000,-10122.93535753,0.000162,2]
[424469691,1780937446000,-26951.0,0.00016315,2]
[424469689,1780937446000,-1147.45420169,0.00016314,2]
[424469692,1780937446000,-1147.45420169,0.00016324,2]
[424469694,1780937446000,-1147.45420169,0.00016348,2]
[424469660,1780937446000,-1147.45420169,0.0001609,2]
[424469680,1780937446000,-1147.45420169,0.00016236,2]
[424469687,1780937446000,-170.42,0.00016289,2]
[424469714,1780937446000,-151.0,0.00016438,2]
[424469716,1780937446000,-151.0,0.00016438,2]
[424469697,1780937446000,-1147.4542,0.00016393,2]
[424469712,1780937446000,-235.64,0.00016438,2]
[424469709,1780937446000,-300.0,0.00016437,2]
[424469710,1780937446000,-666.0,0.00016437,2]
[424469684,1780937446000,-1147.45420169,0.00016253,2]
[424469682,1780937446000,-1147.45420169,0.00016238,2]
[424469678,1780937446000,-7097.11682898,0.000162,2]
[424469696,1780937446000,-1147.45420169,0.00016348,2]
[424469685,1780937446000,-350.0,0.00016275,2]
[424469708,1780937446000,-300.0,0.00016437,2]
[424469811,1780937447000,-1147.45420169,0.00016447,2]
[424469815,1780937447000,-6624.7350477,0.000165,2]
[424469819,1780937447000,-7097.11682898,0.000165,2]
[424469821,1780937447000,-1147.45420169,0.00016516,2]
[424469817,1780937447000,-10122.93535753,0.000165,2]
[424469823,1780937447000,-1147.45420169,0.00016531,2]
[424469825,1780937447000,-1147.45420169,0.00016532,2]
[424469835,1780937447000,-1191.11104074,0.00016597,2]
[424469827,1780937447000,-1147.45420169,0.00016547,2]
[424469844,1780937447000,-1147.45420169,0.0001661,2]
[424469837,1780937447000,-1734.62772924,0.00016597,2]
[424469833,1780937447000,-1147.45420169,0.0001659,2]
[424469829,1780937447000,-1147.45420169,0.00016557,2]
[424469839,1780937447000,-1612.27,0.000166,2]
[424469841,1780937447000,-1147.45420169,0.00016605,2]
[424469846,1780937447000,-1147.45420169,0.00016644,2]
[424469848,1780937447000,-10122.93535753,0.000167,2]
[424469850,1780937447000,-311.0,0.000167,2]
[424469813,1780937447000,-1147.45420169,0.00016471,2]
[424469831,1780937447000,-1147.45420169,0.00016563,2]
[424469809,1780937447000,-300.0,0.00016438,3]
[424469774,1780937447000,-2665.771916,0.00016438,2]
[424469795,1780937447000,-2665.771916,0.00016438,2]
[424469864,1780937447000,-1147.45420169,0.00016823,2]
[424469766,1780937447000,-2665.771916,0.00016438,2]
[424469770,1780937447000,-2665.771916,0.00016438,2]
[424469768,1780937447000,-2665.771916,0.00016438,2]
[424469772,1780937447000,-2665.771916,0.00016438,2]
[424469778,1780937447000,-2665.771916,0.00016438,2]
[424469784,1780937447000,-2665.771916,0.00016438,2]
[424469780,1780937447000,-2665.771916,0.00016438,2]
[424469787,1780937447000,-2665.771916,0.00016438,2]
[424469797,1780937447000,-2665.771916,0.00016438,2]
[424469785,1780937447000,-2665.771916,0.00016438,2]
[424469776,1780937447000,-2665.771916,0.00016438,2]
[424469789,1780937447000,-2665.771916,0.00016438,2]
[424469801,1780937447000,-300.0,0.00016438,3]
[424469793,1780937447000,-2665.771916,0.00016438,2]
[424469791,1780937447000,-2665.771916,0.00016438,2]
[424469799,1780937447000,-2665.77191692,0.00016438,2]
[424469803,1780937447000,-300.0,0.00016438,3]
[424469805,1780937447000,-300.0,0.00016438,3]
[424469807,1780937447000,-300.0,0.00016438,3]
[424469781,1780937447000,-2665.771916,0.00016438,2]
[424469862,1780937447000,-200.0,0.000168,3]
[424469909,1780937447000,-10122.93535753,0.000177,2]
[424469852,1780937447000,-1000.0,0.000167,2]
[424469911,1780937447000,-500.0,0.00017808,2]
[424469947,1780937447000,-7872.34457716,0.00018,2]
[424469907,1780937447000,-403.0,0.000177,5]
[424469914,1780937447000,-500.0,0.00017808,2]
[424469916,1780937447000,-500.0,0.00017836,2]
[424469929,1780937447000,-300.0,0.00017999,2]
[424469918,1780937447000,-2000.0,0.00017836,2]
[424469930,1780937447000,-300.0,0.00017999,2]
[424469932,1780937447000,-300.0,0.00017999,2]
[424469922,1780937447000,-159.99,0.000179,3]
[424469934,1780937447000,-300.0,0.00017999,2]
[424469927,1780937447000,-204.27158003,0.000179,2]
[424469936,1780937447000,-666.0,0.00017999,2]
[424469925,1780937447000,-10122.93535753,0.000179,2]
[424469920,1780937447000,-1241.40834328,0.0001789,2]
[424469939,1780937447000,-1807.90479762,0.00018,2]
[424469941,1780937447000,-12235.72142346,0.00018,2]
[424469945,1780937447000,-199.955123,0.00015,2]
[424469854,1780937447000,-635.790747,0.00016712,2]
[424469905,1780937447000,-1865.36488656,0.00017693,2]
[424469903,1780937447000,-1280.88388877,0.00017693,2]
[424469913,1780937447000,-500.0,0.00017808,2]
[424469899,1780937447000,-167.76700519,0.00017528,2]
[424469860,1780937447000,-1147.45420169,0.00016787,2]
[424469856,1780937447000,-168.37,0.00016712,2]
[424469866,1780937447000,-1147.45420169,0.00016843,2]
[424469858,1780937447000,-293.86,0.00016767,2]
[424469870,1780937447000,-10122.93535753,0.000169,2]
[424469901,1780937447000,-10122.93535753,0.000176,2]
[424469872,1780937447000,-1147.45420169,0.00016968,2]
[424469874,1780937447000,-10122.93535753,0.00017,2]
[424469868,1780937447000,-1147.45420169,0.00016893,2]
[424469887,1780937447000,-701.87148304,0.00017323,2]
[424469876,1780937447000,-151.0,0.00017005,2]
[424469878,1780937447000,-151.0,0.00017005,2]
[424469884,1780937447000,-10558.17709739,0.00017194,2]
[424469882,1780937447000,-1798.80895522,0.00017145,2]
[424469886,1780937447000,-10122.93535753,0.000172,2]
[424469880,1780937447000,-1235.18214925,0.00017145,2]
[424469897,1780937447000,-274.31146125,0.00017509,2]
[424469891,1780937447000,-8886.0,0.00017412,2]
[424469893,1780937447000,-4000.0,0.00017456,3]
[424469895,1780937447000,-2944.0,0.00017509,2]
[424469889,1780937447000,-10122.93535753,0.000174,2]
[424470489,1780937736000,2648.21178548,9.469e-05,30]
[424470495,1780937961000,-2095.0,9.422e-05,2]
[424470507,1780938147000,152.0,9.522e-05,30]
[424470520,1780938416000,-1476.27832015,9.469e-05,2]
[424470526,1780938431000,300.0,0.000106,3]
[424470527,1780938434000,600.0,0.000107,3]
[424470530,1780938435000,900.0,0.000108,3]
[424470528,1780938435000,152.0,9.487e-05,30]
[424470531,1780938438000,1200.0,0.000109,3]
[424470540,1780938564000,-422.28724038,8.773e-05,2]
[424470541,1780938564000,-250.0,9.121e-05,2]
[424470544,1780938564000,-150.0,9.47e-05,2]
[424470542,1780938564000,-975.02421867,9.469e-05,2]
[424470545,1780938564000,-500.0,9.47e-05,2]
[424470548,1780938564000,-830.90100542,9.573e-05,2]
[424470543,1780938564000,-1289.95950763,9.469e-05,2]
[424470547,1780938564000,-390.5435243,9.497e-05,2]
[424470546,1780938564000,-364.79975158,9.47e-05,2]
[424470551,1780938588000,-461.79297492,9.573e-05,2]
[424470550,1780938588000,-2697.70760211,9.525e-05,2]
[424470549,1780938588000,-3629.67409389,9.525e-05,2]
[424470557,1780938612000,-373.4377555,9.646e-05,2]
[424470555,1780938612000,-500.0,9.646e-05,2]
[424470556,1780938612000,-500.0,9.646e-05,2]
[424470554,1780938612000,-2281.52085529,9.573e-05,2]
[424470559,1780938613000,-139.50102348,9.651e-05,2]
[424470560,1780938613000,-1956.71451785,9.688e-05,2]
[424470558,1780938613000,-110.49897652,9.651e-05,2]
[424470575,1780938631000,-304.0,9.688e-05,2]
[424470577,1780938631000,-880.11425505,9.984e-05,2]
[424470576,1780938631000,-2679.74548215,9.688e-05,2]
[424470578,1780938631000,-1534.72858893,9.984e-05,2]
[424470579,1780938631000,-161.44715602,9.984e-05,2]
[424470582,1780938631000,-1069.29236032,0.00010313,2]
[424470581,1780938631000,-530.70763968,0.00010313,2]
[424470586,1780938631000,-9416.43,0.00010333,2]
[424470583,1780938631000,-223.13192573,0.00010321,2]
[424470580,1780938631000,-150.0,0.00010296,2]
[424470584,1780938631000,-9999.99,0.00010333,2]
[424470590,1780938632000,-150.99,0.00010333,2]
[424470599,1780938632000,-999.99,0.0001044,2]
[424470588,1780938632000,-24999.99,0.00010333,2]
[424470601,1780938632000,-166.62,0.00010476,2]
[424470587,1780938632000,-299.99,0.00010333,2]
[424470589,1780938632000,-1492.0,0.00010333,2]
[424470592,1780938632000,-250.0,0.00010416,2]
[424470595,1780938632000,-909.31,0.00010416,2]
[424470597,1780938632000,-215.86427702,0.0001044,2]
[424470614,1780938632000,-26308.16196657,0.00011028,2]
[424470603,1780938632000,-500.0,0.00010523,2]
[424470607,1780938632000,-250.0,0.00010531,2]
[424470605,1780938632000,-193.0,0.00010531,2]
[424470612,1780938632000,-2643.327,0.00011028,2]
[424470610,1780938632000,-2500.0,0.00011027,2]
[424470591,1780938632000,-170.42,0.00010401,2]
[424470626,1780938637000,-838.44417878,0.00011028,2]
[424470624,1780938637000,-166.66,0.00010959,2]
[424470625,1780938637000,-3017.19,0.00011028,2]
[424470684,1780938638000,641.207786,0.00030137,120]
[424470627,1780938638000,-8065.59281388,0.00011028,2]
[424470943,1780938640000,-151.0,0.00011125,2]
[424470941,1780938640000,-169.51571768,0.00011118,2]
[424470945,1780938640000,-151.0,0.00011125,2]
[424470931,1780938640000,-4195.0,0.00011068,2]
[424470939,1780938640000,-8452.74928209,0.00011101,2]
[424470935,1780938640000,-200.0,0.0001109,2]
[424470933,1780938640000,-166.66,0.00011068,2]
[424470937,1780938640000,-1680.40817973,0.00011099,2]
[424470915,1780938640000,-922.18333418,0.00011028,2]
[424470927,1780938640000,-2484.85363933,0.00011028,2]
[424470923,1780938640000,-2261.99891123,0.00011028,2]
[424470921,1780938640000,-1687.48948809,0.00011028,2]
[424470917,1780938640000,-1774.52414516,0.00011028,2]
[424470912,1780938640000,-2471.72540279,0.00011028,2]
[424470910,1780938640000,-613.93625858,0.00011028,2]
[424470947,1780938640000,-500.0,0.00011127,2]
[424470929,1780938640000,-16873.59676141,0.00011028,2]
[424470970,1780938640000,-1437.69321694,0.00011127,2]
[424470990,1780938640000,-1437.69321694,0.00011127,2]
[424470966,1780938640000,-500.0,0.00011127,2]
[424470949,1780938640000,-184.70425115,0.00011127,2]
[424470988,1780938640000,-1437.69321694,0.00011127,2]
[424470981,1780938640000,-1437.69321694,0.00011127,2]
[424470986,1780938640000,-1437.69321694,0.00011127,2]
[424470984,1780938640000,-1437.69321694,0.00011127,2]
[424470975,1780938640000,-1437.69321694,0.00011127,2]
[424470979,1780938640000,-1437.69321694,0.00011127,2]
[424470977,1780938640000,-1437.69321694,0.00011127,2]
[424470982,1780938640000,-1437.69321694,0.00011127,2]
[424470955,1780938640000,-500.0,0.00011127,2]
[424470953,1780938640000,-455.90648651,0.00011127,2]
[424470961,1780938640000,-500.0,0.00011127,2]
[424470951,1780938640000,-500.0,0.00011127,2]
[424470972,1780938640000,-1437.69321694,0.00011127,2]
[424470968,1780938640000,-1437.69321694,0.00011127,2]
[424470957,1780938640000,-500.0,0.00011127,2]
[424470964,1780938640000,-500.0,0.00011127,2]
[424470959,1780938640000,-500.0,0.00011127,2]
[424471079,1780938641000,-1433.8075596,0.00011127,2]
[424471081,1780938641000,-1433.8075596,0.00011127,2]
[424471077,1780938641000,-1433.8075596,0.00011127,2]
[424471075,1780938641000,-1433.8075596,0.00011127,2]
[424471073,1780938641000,-592.76879519,0.00011127,2]
[424471072,1780938641000,-1437.69321694,0.00011127,2]
[424471068,1780938641000,-1437.69321694,0.00011127,2]
[424471066,1780938641000,-1437.69321694,0.00011127,2]
[424471057,1780938641000,-1437.69321694,0.00011127,2]
[424471055,1780938641000,-1437.69321694,0.00011127,2]
[424471059,1780938641000,-1437.69321694,0.00011127,2]
[424471083,1780938641000,-1433.8075596,0.00011127,2]
[424471070,1780938641000,-1437.69321694,0.00011127,2]
[424471087,1780938641000,-1433.8075596,0.00011127,2]
[424471097,1780938641000,-1433.8075596,0.00011127,2]
[424471100,1780938641000,-1433.8075596,0.00011127,2]
[424471118,1780938641000,-1433.8075596,0.00011127,2]
[424471110,1780938641000,-1433.8075596,0.00011127,2]
[424471111,1780938641000,-1433.8075596,0.00011127,2]
[424471122,1780938641000,-1433.8075596,0.00011127,2]
[424471104,1780938641000,-1433.8075596,0.00011127,2]
[424471102,1780938641000,-1433.8075596,0.00011127,2]
[424471099,1780938641000,-1433.8075596,0.00011127,2]
[424471096,1780938641000,-1433.8075596,0.00011127,2]
[424471095,1780938641000,-1433.8075596,0.00011127,2]
[424471098,1780938641000,-1433.8075596,0.00011127,2]
[424471093,1780938641000,-1433.8075596,0.00011127,2]
[424471091,1780938641000,-1433.8075596,0.00011127,2]
[424471089,1780938641000,-1433.8075596,0.00011127,2]
[424471085,1780938641000,-1433.8075596,0.00011127,2]
[424471063,1780938641000,-1437.69321694,0.00011127,2]
[424471061,1780938641000,-1437.69321694,0.00011127,2]
[424471042,1780938641000,-1437.69321694,0.00011127,2]
[424471049,1780938641000,-1437.69321694,0.00011127,2]
[424471116,1780938641000,-1433.8075596,0.00011127,2]
[424470996,1780938641000,-1437.69321694,0.00011127,2]
[424470994,1780938641000,-1437.69321694,0.00011127,2]
[424470992,1780938641000,-1437.69321694,0.00011127,2]
[424470998,1780938641000,-1437.69321694,0.00011127,2]
[424471000,1780938641000,-1437.69321694,0.00011127,2]
[424471004,1780938641000,-1437.69321694,0.00011127,2]
[424471016,1780938641000,-1437.69321694,0.00011127,2]
[424471014,1780938641000,-1437.69321694,0.00011127,2]
[424471015,1780938641000,-1437.69321694,0.00011127,2]
[424471002,1780938641000,-1437.69321694,0.00011127,2]
[424471012,1780938641000,-1437.69321694,0.00011127,2]
[424471010,1780938641000,-1437.69321694,0.00011127,2]
[424471006,1780938641000,-1437.69321694,0.00011127,2]
[424471052,1780938641000,-1437.69321694,0.00011127,2]
[424471008,1780938641000,-1437.69321694,0.00011127,2]
[424471020,1780938641000,-1437.69321694,0.00011127,2]
[424471024,1780938641000,-1437.69321694,0.00011127,2]
[424471022,1780938641000,-1437.69321694,0.00011127,2]
[424471026,1780938641000,-1437.69321694,0.00011127,2]
[424471028,1780938641000,-1437.69321694,0.00011127,2]
[424471036,1780938641000,-1437.69321694,0.00011127,2]
[424471038,1780938641000,-1437.69321694,0.00011127,2]
[424471030,1780938641000,-1437.69321694,0.00011127,2]
[424471035,1780938641000,-1437.69321694,0.00011127,2]
[424471040,1780938641000,-1437.69321694,0.00011127,2]
[424471033,1780938641000,-1437.69321694,0.00011127,2]
[424471044,1780938641000,-1437.69321694,0.00011127,2]
[424471050,1780938641000,-1437.69321694,0.00011127,2]
[424471047,1780938641000,-1437.69321694,0.00011127,2]
[424471018,1780938641000,-1437.69321694,0.00011127,2]
[424471112,1780938641000,-1433.8075596,0.00011127,2]
[424471231,1780938641000,-500.0,0.00013698,2]
[424471108,1780938641000,-1433.8075596,0.00011127,2]
[424471184,1780938641000,-500.0,0.00011401,2]
[424471179,1780938641000,-1753.00523334,0.00011301,2]
[424471196,1780938641000,-8452.74928204,0.00012282,2]
[424471183,1780938641000,-166.66,0.00011397,2]
[424471194,1780938641000,-1680.40817973,0.00012218,2]
[424471193,1780938641000,-8452.74928204,0.00011692,2]
[424471107,1780938641000,-1433.8075596,0.00011127,2]
[424471200,1780938641000,-1680.40817973,0.00012817,2]
[424471187,1780938641000,-166.66,0.00011507,2]
[424471204,1780938641000,-1600.0,0.00012891,2]
[424471202,1780938641000,-8452.74928204,0.00012873,2]
[424471206,1780938641000,-1500.0,0.000129,4]
[424471210,1780938641000,-1680.40817973,0.00013417,2]
[424471208,1780938641000,-169.51571768,0.00013413,2]
[424471190,1780938641000,-1680.40817973,0.00011618,2]
[424471212,1780938641000,-250.0,0.0001342,2]
[424471225,1780938641000,-500.0,0.00013698,2]
[424471228,1780938641000,-644.7683706,0.00013698,2]
[424471220,1780938641000,-500.0,0.00013698,2]
[424471226,1780938641000,-500.0,0.00013698,2]
[424471218,1780938641000,-1500000.0,0.00013423,2]
[424471216,1780938641000,-151.0,0.0001342,2]
[424471224,1780938641000,-500.0,0.00013698,2]
[424471222,1780938641000,-500.0,0.00013698,2]
[424471229,1780938641000,-500.0,0.00013698,2]
[424471234,1780938641000,-500.0,0.00013698,2]
[424471233,1780938641000,-500.0,0.00013698,2]
[424471239,1780938641000,-303.67601872,0.00013699,2]
[424471236,1780938641000,-200.0,0.00013699,2]
[424471237,1780938641000,-500.0,0.00013699,2]
[424471214,1780938641000,-151.0,0.0001342,2]
[424471181,1780938641000,-300.80206416,0.00011301,2]
[424471198,1780938641000,-161.16,0.00012329,2]
[424471175,1780938641000,-159.65438289,0.00011201,2]
[424471105,1780938641000,-1433.8075596,0.00011127,2]
[424471109,1780938641000,-1433.8075596,0.00011127,2]
[424471114,1780938641000,-1433.8075596,0.00011127,2]
[424471120,1780938641000,-1433.8075596,0.00011127,2]
[424471124,1780938641000,-1433.8075596,0.00011127,2]
[424471134,1780938641000,-500.0,0.00011127,2]
[424471189,1780938641000,-1600.0,0.00011602,2]
[424471128,1780938641000,-1433.8075596,0.00011127,2]
[424471126,1780938641000,-1433.8075596,0.00011127,2]
[424471130,1780938641000,-500.0,0.00011127,2]
[424471135,1780938641000,-500.0,0.00011127,2]
[424471145,1780938641000,-500.0,0.00011127,2]
[424471147,1780938641000,-500.0,0.00011127,2]
[424471139,1780938641000,-500.0,0.00011127,2]
[424471137,1780938641000,-192.99902705,0.00011127,2]
[424471132,1780938641000,-500.0,0.00011127,2]
[424471141,1780938641000,-500.0,0.00011127,2]
[424471173,1780938641000,-166.66,0.00011178,2]
[424471143,1780938641000,-500.0,0.00011127,2]
[424471177,1780938641000,-166.66,0.00011288,2]
[424471171,1780938641000,-2500000.0,0.00011128,2]
[424471169,1780938641000,-2000.0,0.00011127,2]
[424471159,1780938641000,-1433.80755958,0.00011127,2]
[424471161,1780938641000,-300.0,0.00011127,2]
[424471167,1780938641000,-500.0,0.00011127,2]
[424471163,1780938641000,-635.36920886,0.00011127,2]
[424471157,1780938641000,-1433.80755958,0.00011127,2]
[424471155,1780938641000,-1433.80755958,0.00011127,2]
[424471153,1780938641000,-1433.80755958,0.00011127,2]
[424471151,1780938641000,-309.1021865,0.00011127,2]
[424471149,1780938641000,-500.0,0.00011127,2]
[424471165,1780938641000,-330.49370057,0.00011127,2]
[424471279,1780938642000,-408.36662446,0.00014452,2]
[424471257,1780938642000,-1600.0,0.0001418,2]
[424471268,1780938642000,-150.0,0.00014452,2]
[424471272,1780938642000,-500.0,0.00014452,2]
[424471277,1780938642000,-91.63337554,0.00014452,2]
[424471267,1780938642000,-500.0,0.00014452,2]
[424471252,1780938642000,-250.0,0.00014,2]
[424471250,1780938642000,-1344.79768542,0.000139,2]
[424471258,1780938642000,-300.80206416,0.00014234,2]
[424471253,1780938642000,-1680.40817973,0.00014017,2]
[424471262,1780938642000,-1500.0,0.00014303,2]
[424471260,1780938642000,-1030.0,0.00014303,2]
[424471265,1780938642000,-150.0,0.00014452,2]
[424471263,1780938642000,-218.50708358,0.00014452,2]
[424471240,1780938642000,-7137.94,0.00013852,2]
[424471242,1780938642000,-106.24231458,0.000139,2]
[424471275,1780938642000,-188.35501289,0.00014452,2]
[424471255,1780938642000,-1703.0,0.00014036,5]
[424471284,1780938642000,-100.33368216,0.00014452,2]
[424471376,1780938642000,-906.0,0.00014452,2]
[424471273,1780938642000,-311.64498711,0.00014452,2]
[424471384,1780938642000,-646.79771898,0.00014452,2]
[424471380,1780938642000,-906.0,0.00014452,2]
[424471378,1780938642000,-906.0,0.00014452,2]
[424471374,1780938642000,-906.0,0.00014452,2]
[424471372,1780938642000,-906.0,0.00014452,2]
[424471370,1780938642000,-906.0,0.00014452,2]
[424471382,1780938642000,-906.0,0.00014452,2]
[424471366,1780938642000,-906.0,0.00014452,2]
[424471270,1780938642000,-500.0,0.00014452,2]
[424471364,1780938642000,-527.20455881,0.00014452,2]
[424471294,1780938642000,-378.79544119,0.00014452,2]
[424471291,1780938642000,-215.20455881,0.00014452,2]
[424471292,1780938642000,-906.0,0.00014452,2]
[424471287,1780938642000,-309.20455881,0.00014452,2]
[424471289,1780938642000,-690.79544119,0.00014452,2]
[424471285,1780938642000,-596.79544119,0.00014452,2]
[424471281,1780938642000,-78.67337554,0.00014452,2]
[424471368,1780938642000,-906.0,0.00014452,2]